Cogmind - Beta 16 @@@ ROGUE MODE // 2025.11.14 @ 18:14:37 Player: Runagate Result: Destroyed by DD-BGL(R) with Subdweller Shrapnel Launcher Performance ------------- Evolutions (0) 0 Regions Visited (2) 400 Robots Destroyed (21) 105 Value Destroyed (250) 250 Prototype IDs (0) 0 Alien Tech Used (0) 0 Bonus (0) 0 TOTAL SCORE: 755 Bonus ------- None Cogmind --------- Core Integrity 0/250 Matter 251/300 Energy 237/250 System Corruption 0% Temperature Cool (0) Movement Core (300) Ox5 Location -10/Subcaves Parts ------- > --- POWER (1) -------- Ion Engine > --- PROPULSION (2) --- (None) > --- UTILITY (2) ------ Small Storage Unit Seismic Detector > --- WEAPON (2) ------- Light Assault Rifle Subdweller Machine Gun > --- INVENTORY (8) ---- Subdweller Optics Scrap Shield Mining Laser Multitool Scrap Shield Fragment (50) Scrap Shield Fragment (49) Peak State ------------ > --- POWER ------------ Ion Engine > --- PROPULSION ------- Light Treads Light Treads > --- UTILITY ---------- Small Storage Unit Improved Terrain Scanner > --- WEAPON ----------- Light Assault Rifle Subdweller Machine Gun > --- INVENTORY -------- Ion Engine Subdweller Optics Seismic Detector EM Pulse Gun Small Laser Mining Laser Scrap Shield Fragment Scrap Shield Fragment [Rating: 11] Favorites ----------- Power Ion Engine Engine Ion Engine Propulsion Light Treads Treads Light Treads Utility Small Storage Unit Device Seismic Detector Storage Small Storage Unit Weapon Light Assault Rifle Energy Gun Small Laser Ballistic Gun Light Assault Rifle Special Weapon Mining Laser Build | -11 -10 -10 ------- Run | Yrd Mat Sub Slots Evolved . | . . . Power . | . . . Propulsion . | . . . Utility . | . . . Weapon . | . . . Parts Attached 13 | 8 1 4 Power 1 | 1 . . Engine 1 | 1 . . Core . | . . . Reactor . | . . . Propulsion 2 | 2 . . Treads 2 | 2 . . Leg . | . . . Wheel . | . . . Hover . | . . . Flight . | . . . Utility 4 | 2 . 2 Device 3 | 1 . 2 Storage 1 | 1 . . Processor . | . . . Hackware . | . . . Protection . | . . . Artifact . | . . . Weapon 6 | 3 1 2 Energy Gun 2 | 2 . . Energy Cannon . | . . . Ballistic Gun 3 | 1 . 2 Ballistic Cannon . | . . . Launcher . | . . . Special Weapon 1 | . 1 . Impact Weapon . | . . . Slashing Weapon . | . . . Piercing Weapon . | . . . Special Melee Weapon . | . . . Unidentified Prototypes . | . . . Parts Lost 3 | . . 3 Power . | . . . Propulsion 2 | . . 2 Utility . | . . . Weapon 1 | . . 1 Highest Loss Streak 3 | . . 3 To Critical Strikes . | . . . Average Backups 4 | 2 4 5 Power . | . 1 . Propulsion . | . . . Utility 1 | . 1 1 Weapon 2 | 1 2 2 Tool/Special . | . . . Unused Backups 5 | 1 1 3 Power 1 | . . 1 Propulsion . | . . . Utility 1 | . . 1 Weapon 2 | 1 1 . Tool/Special 1 | . . 1 Average Slot Usage (%) 99 | . 100 99 Engine 14 | . 14 14 Treads 27 | . 28 27 Device 14 | . 14 14 Storage 14 | . 14 14 Energy Gun 1 | . . 1 Ballistic Gun 23 | . 14 25 Special Weapon 3 | . 13 . Peak Build Rating 11 | 7 7 11 Average Rating 8 | 6 7 8 On Entrance 4 | . 7 7 Avg Prop Armor Cover (%) . | . . . Naked Turns . | . . . Heaviest Build 17 | 13 14 17 Greatest Support 40 | 40 40 40 Greatest Overweight (x) 2 | 2 . . Average Overweight (x) . | . . . Largest Inventory Capacity 8 | 8 8 8 Average Capacity 7 | 7 8 8 Most Carried 8 | 4 5 8 Average Carried 6 | 2 4 7 Final Capacity 8 | 8 8 8 Final Carried 7 | 4 4 7 Class Distribution -------------------- 100% | Mutant Dominant Class ---------------- Mutant | -10/Materials Mutant | -10/Subcaves Resources | -11 -10 -10 ----------- Run | Yrd Mat Sub Matter Collected 513 | 314 11 188 Remotely . | . . . Salvage Created 645 | 356 34 255 Parts 64 | 33 7 24 Haulers Intercepted . | . . . Recyclers Shooed . | . . . Parts Field Recycled . | . . . Retrieved Matter . | . . . Parts Self-Destructed 1 | . . 1 Prevented . | . . . Parts Restored . | . . . Kills | -11 -10 -10 ------- Run | Yrd Mat Sub Combat Hostiles Destroyed 4 | . . 4 Guns 4 | . . 4 Classes Destroyed 5 | 3 1 1 Worker 4 | 4 . . Builder 2 | . 2 . Tunneler 10 | 9 1 . Recycler 1 | 1 . . Subdweller 4 | . . 4 Best Kill Streak 3 | 3 1 2 Combat Bots Only 2 | . . 2 Max Kills in Single Turn 1 | 1 1 1 Gunslinging . | . . . Exploded . | . . . Melee . | . . . Uniques/NPCs Destroyed . | . . . Combat | -11 -10 -10 -------- Run | Yrd Mat Sub Hostile Shots Fired 25 | . . 25 Missed 6 | . . 6 Hits 19 | . . 19 Projectile 19 | . . 19 AOE 7 | . . 7 Critical Strikes 1 | . . 1 Damage Taken 732 | . . 732 Core 274 | . . 274 Absorbed by Shields . | . . . Core Remaining (%) 100 | 100 . . Volleys Fired 137 | 34 52 51 Largest 2 | 2 2 2 Hottest 130 | 60 100 130 Shots Fired 216 | 68 53 95 Gun 155 | 68 2 85 Cannon . | . . . Launcher . | . . . Special 61 | . 51 10 Kinetic 102 | 34 1 67 Thermal 113 | 34 52 27 Explosive . | . . . Electromagnetic 1 | . . 1 Robot Hit Streak 21 | 9 3 21 Robot Miss Streak 4 | 4 . 2 Penetration Max . | . . . Secondary Targets . | . . . Shots Hit Robots 107 | 38 1 68 Core Hits 41 | 19 3 19 Critical Kills . | . . . Critical Parts Destroyed . | . . . Critical Strikes 1 | . . 1 Destroy 1 | . . 1 Melee Attacks . | . . . Impact . | . . . Slashing . | . . . Piercing . | . . . Sneak Attacks . | . . . Combat Hostiles . | . . . Follow-up Attacks . | . . . Damage Inflicted 1217 | 363 60 794 Guns 1169 | 363 12 794 Cannons . | . . . Explosions . | . . . Melee . | . . . Ramming . | . . . Kinetic 751 | 148 . 603 Thermal 456 | 215 60 181 Explosive . | . . . Electromagnetic 10 | . . 10 Impact . | . . . Slashing . | . . . Piercing . | . . . Highest Corruption . | . . . Average Corruption . | . . . Corruption Purged . | . . . Corruption Blocked . | . . . Overload Shots . | . . . Overflow Damage . | . . . Projectiles . | . . . Explosions . | . . . Melee . | . . . Knockbacks . | . . . Impact . | . . . Kinetic . | . . . Secondary . | . . . Self-Inflicted Damage . | . . . Shots . | . . . Rammed . | . . . Targets Rammed . | . . . Kicked . | . . . Crushed . | . . . Highest Temperature 160 | 40 160 . Average Temperature 32 | 19 37 . Received Heat Transfer 60 | . . 60 Siege Activations . | . . . Martial Activations . | . . . Shielding Activations . | . . . Robots Disrupted . | . . . Combat Hostiles . | . . . Robots Corrupted . | . . . Combat Hostiles . | . . . Parts Fried . | . . . Impact Corruptions . | . . . Robots Melted . | . . . Combat Hostiles . | . . . Parts Melted 1 | . 1 . Heat Transferred 1025 | 500 125 400 Parts Sabotaged . | . . . Parts Stolen . | . . . Parts Stripped . | . . . Power Chain Reactions . | . . . Alert | -11 -10 -10 ------- Run | Yrd Mat Sub Maximum Alert Level . | . . . Low Security (%) 100 | 100 100 . Level 1 . | . . . Level 2 . | . . . Level 3 . | . . . Level 4 . | . . . Level 5 . | . . . High Security . | . . . Max Security . | . . . Peak Influence 10 | 10 6 . Initial . | . . . Average 1 | 1 . . Influence Increases 89 | 70 19 . Destroy 0b10 Robot/NC 85 | 70 15 . Destroy Structure 4 | . 4 . Influence Decreases 89 | 70 19 . Time Decay 89 | 70 19 . Squads Dispatched . | . . . Investigation . | . . . Extermination . | . . . Reinforcement . | . . . Assault . | . . . Garrison . | . . . Intercept . | . . . Searches Triggered . | . . . Construction Impeded . | . . . Haulers Reinforced . | . . . Active Scanning Responses . | . . . Cargo Convoy Interrupts . | . . . Stealth | -11 -10 -10 --------- Run | Yrd Mat Sub Distress Signals . | . . . Communications Jammed . | . . . Distress Signals . | . . . Times Spotted 6 | . . 6 Peak Tracking Total 2 | . . 2 Tactical Retreats . | . . . Traps | -11 -10 -10 ------- Run | Yrd Mat Sub Traps Triggered 2 | . . 2 Indirectly . | . . . Trap Hack Attempts . | . . . Triggered . | . . . Disarmed . | . . . Reprogrammed . | . . . Reused . | . . . Traps Extracted . | . . . Installed . | . . . Triggered . | . . . Machines | -11 -10 -10 ---------- Run | Yrd Mat Sub Machines Disabled . | . . . Max in Single Turn . | . . . Machines Repaired . | . . . Machines Dismantled . | . . . Machines Sabotaged . | . . . Overloaded Fab Kills . | . . . Hacking | -11 -10 -10 --------- Run | Yrd Mat Sub Machines Accessed 2 | . . 2 Terminals . | . . . Fabricators . | . . . Repair Stations . | . . . Recycling Units . | . . . Scanalyzers . | . . . Garrison Access . | . . . Total Hacks 3 | . . 3 Successful 3 | . . 3 Failed . | . . . Catastrophic . | . . . Database Lockouts . | . . . Manual . | . . . Terminals . | . . . Fabricators . | . . . Repair Stations . | . . . Recycling Units . | . . . Scanalyzers . | . . . Garrison Access . | . . . Terminal Hacks 3 | . . 3 Record 1 | . . 1 Open Door 1 | . . 1 Release Object 1 | . . 1 Fabricator Hacks . | . . . Repair Station Hacks . | . . . Recycling Unit Hacks . | . . . Scanalyzer . | . . . Garrison Access Hacks . | . . . Unauthorized Hacks . | . . . Terminals . | . . . Fabricators . | . . . Repair Stations . | . . . Recycling Units . | . . . Scanalyzers . | . . . Garrison Access . | . . . Data Cores Recovered . | . . . Used . | . . . Hacking Detections . | . . . Full Trace Events . | . . . Feedback Events . | . . . Feedback Blocked . | . . . Robot Schematics Acquired . | . . . Robots Built . | . . . Authchips . | . . . Time . | . . . Total Robot Build Rating . | . . . Part Schematics Acquired . | . . . Parts Built . | . . . Authchips . | . . . Time . | . . . Total Part Build Rating . | . . . Part Studies Acquired . | . . . Parts Repaired . | . . . Time . | . . . Parts Recycled . | . . . Recycled Matter . | . . . Retrieved Matter . | . . . Retrieved Components . | . . . Parts Scanalyzed . | . . . Part Schematics Acquired . | . . . Parts Damaged . | . . . Bothacking | -11 -10 -10 ------------ Run | Yrd Mat Sub Used RIF Installer . | . . . Robots Hacked . | . . . Non-combat . | . . . Combat . | . . . Robot Hacks Applied . | . . . Relay Couplers Released . | . . . Fabnet Peak Effective % . | . . . Robots Rewired . | . . . Allies Hacked . | . . . Hacks Repelled . | . . . Allies | -11 -10 -10 -------- Run | Yrd Mat Sub Total Allies . | . . . Largest Group . | . . . Highest-Rated Group . | . . . Highest-Rated Ally . | . . . Total Orders . | . . . Ally Attacks . | . . . Total Damage . | . . . Kills . | . . . Allies Corrupted . | . . . Allies Melted . | . . . Intel | -11 -10 -10 ------- Run | Yrd Mat Sub Active Infowar (turns) 2477 | 364 406 1707 Optics 159 | . . 159 Terrain 46 | . . 46 Seismic 2272 | 364 406 1502 Robot Analysis Total . | . . . Derelict Logs Recovered 2 | . . 2 Drone Launches . | . . . Drone Recoveries . | . . . Exploration | -11 -10 -10 ------------- Run | Yrd Mat Sub Turns Passed 2563 | 450 406 1707 Spaces Moved 1189 | 210 41 938 Core 15 | 15 . . Treads 1174 | 195 41 938 Legs . | . . . Wheels . | . . . Hover . | . . . Flight . | . . . Fastest Speed 50 | 50 160 160 Average Speed 159 | 157 160 160 Slowest Speed 160 | 160 160 160 Overloaded Moves . | . . . Propulsion Burnouts . | . . . Robots Hopped . | . . . Potential Cave-ins . | . . . Cave-ins Triggered . | . . . Exploration Rate (%) 25 | 8 6 62 Regions Visited 2 Branch Regions 1 Pre-discovered Areas . | . . . Known Exits Taken . | . . . Unknown Exits Taken 2 | 1 1 . Scrap Searched 4 | . . 4 Spaces Dug 7 | . 2 5 Terrain Destroyed 12 | . 7 5 Melee . | . . . Projectile 12 | . 7 5 AOE . | . . . Terrain Rammed . | . . . Walls Destroyed . | . . . Machines Disabled . | . . . Actions | -11 -10 -10 --------- Run | Yrd Mat Sub Total 1527 | 265 226 1036 Wait 153 | 8 130 15 Move 1187 | 209 40 938 Hop . | . . . Pick Up 15 | 5 1 9 Fast Attach 7 | 7 . . Attach 1 | . . 1 Detach . | . . . Swap 17 | 1 2 14 Drop 9 | 1 1 7 Fire 137 | 34 52 51 Melee . | . . . Ram . | . . . Kick . | . . . Crush . | . . . Escape Stasis . | . . . Rewire . | . . . Trap . | . . . Miscellaneous 1 | . . 1 Route ------- -11/Scrapyard -10/Materials -10/Subcaves History --------- Turn | Location | Event 19 | -11/Scrapyard | Discovered new exit (range 15) 451 | -11/Scrapyard | Entered Materials 452 | -10/Materials | Build established: Mutant 601 | -10/Materials | Discovered new exit (range 2) 857 | -10/Materials | Entered Subcaves 858 | -10/Subcaves | Approached by a straggling Scientist 881 | -10/Subcaves | Learned 2 Materials zone layouts 1205 | -10/Subcaves | Shifting Twisted Machinery released Flamer 1367 | -10/Subcaves | Released subatomizers from SUBCON Basin 1932 | -10/Subcaves | Learned Materials stockpile data 2124 | -10/Subcaves | Disturbed a concealed Subdweller 2536 | -10/Subcaves | Core integrity fell below 50% 2561 | -10/Subcaves | Core integrity fell below 20% 2564 | -10/Subcaves | Destroyed by DD-BGL(R) with Subdweller Shrapnel Launcher Last Messages --------------- 02145_ Dropped EM Pulse Gun. 02146_ Acquired Scrap Shield. 02168_ Searching scrap... 02168_ Found Battle Cannon. 02168_ Found 44 Matter. 02169_ Searching scrap... 02169_ Found Mak. Hacking Suite. 02169_ Found Flamer. 02430_ TS-BRL(u) builds Twisted Machinery. 02504_ PK-GZQ(R) suffers critical hit (Destroy). 02518_ PK-GZQ(R) destroyed. 02524_ Acquired 20 matter. 02534_ 4V-QUB(R) affixes Scrap Shield Fragment to Scrap Shield. 02537_ 4V-QUB(R) destroyed. 02538_ Subatomizers dissect the Sub. Monowheel. 02540_ Acquired 12 matter. 02558_ Lgt. Treads destroyed. 02562_ Sub. Machine Gun destroyed. 02564_ Lgt. Treads destroyed. Map ----- +----------------------------------------------------+ | ?????????????????????????????????????????????????? | | ?????????????????????????????????????????????????? | | ???????????????????# ??????????????????????????? | | ??????????????????? ?????????????????????????? | | ??????????????????? ??????????????????????????? | | ??????????????##??? ??????????????????????????# | | ??????????????# ??? ????????????????###??????## | | ??????????????# ??? ???????????????## #????### | | ?????????????## ??# #??????????????## ##??##" | | ?????????????# ??# ?????????###### ####"""# | | ?????????????# #?# #?????????# "## "" | | ?????????????# ## #????????## " """ # | | ?????????????# R#######??# ## "# | | ??????????????# ; #??## ###### | | ??????????????# ;;; ; ###### ###????? | | ??????????????# ; ; # ##??????? | | ??????????????# #???????? | | ????????????????# ; ## ##??????? | | ????????????????#### & #??????? | | ???????????????????## = & #??????? | | ????????????????????## * ; ## #??????? | | ????????????????????# ;#### ##??????? | | ???????????????? ""## ;#??# ###???????? | | ???????????????? """ ;# # ##?????????? | | ???????????????? """ #" ## "??????????? | | ???????????????? """ @ ;" ### "#?????????? | | ????????????# " ; #?### ??????????? | | ????????????# """" #??? ??????????? | | ????????????????" """ ##???# ??????????? | | ????????????????""" " "##?????"??????????? | | ?????????????????### " " " ##?????????????????? | | ???????????????????# """ """##??????????????????? | | ???????????????????# "###""##???????????????????? | | ??????????????????? #???#"#????????????????????? | | ?????????????????? ?????##????????????????????? | | ????????????????? ##?????????????????????????????? | | ?????????????????#???????????????????????????????? | | ?????????????????????????????????????????????????? | | ?????????????????????????????????????????????????? | | ?????????????????????????????????????????????????? | | ?????????????????????????????????????????????????? | | ?????????????????????????????????????????????????? | | ?????????????????????????????????????????????????? | | ?????????????????????????????????????????????????? | | ?????????????????????????????????????????????????? | | ?????????????????????????????????????????????????? | | ??????????????????????????????????????????#######? | | ?????????????????????????????????????????## ## | | ?????????????????????????????????????????# # | | ????????????????????????????????????????## | +----------------------------------------------------+ Best States ------------- Heat Dissipation 25 Energy Generation 10 Energy Capacity 250 Matter Stores 300 Matter Capacity 300 Sight Range 21 Terrain Scan Range 16 Terrain Scan Density 10 Evasion (%) 40 Recoil Reduction 2 Item Schematics ----------------- None Robot Schematics ------------------ None Fabricated ------------ Nothing Repaired ---------- Nothing Studied --------- None Alien Tech Used ----------------- None Achievements -------------- None Challenges ------------ None Game ------ Seed ExpertLargeSlamshotty Manual? 0 Play Time 00:16:18 Cumulative 260.2 hours Start 2025.11.14 @ 14:33:11 End 2025.11.14 @ 18:14:37 Sessions 3 Manual Loads 0 Difficulty Rogue Special Mode None Game No. 392 Rogue 390 Adventurer 0 Explorer 2 Win Type - Total 6 Types 4/0/1/1/0/0/0/0/0/0 Lore% 55 Gallery% 64 Achievement% 47 Wizard Run 0 Options --------- Layout 2 ASCII 0 Keyboard 1 Movement Arrows Keybinds 0 Fullscreen 1 Font 28/SmallcapsGlow Map View 50x49 Zoom Use 0% Tactical HUD 1 Map Filters NONE Filters NONE Steam 1 RUN: adb3cf23-46c0-486b-9fdd-b8a324b39dd9